bitfinex/quotes_SOLUSD_20250403
["timestamp","ask_amount","ask_price","bid_price","bid_amount"]
[1743696640484,27.77613357,114.3,114.27,8.7512]
[1743696640785,49.49233686,114.3,114.27,30.6292]
[1743696641682,0.28432314,114.28,114.27,8.7512]
[1743696642064,27.49181043,114.3,114.27,30.6292]
[1743696642268,0.28432314,114.29,114.27,30.6292]
[1743696643689,0.28432314,114.29,114.27,52.34540329]
[1743696643890,18.79181043,114.32,114.28,21.71620329]
[1743696644092,0.14216157,114.31,114.29,21.71620329]
[1743696644289,136.0,114.36,114.3,43.43240658]
[1743696644467,0.14216157,114.36,114.33,8.7466]
[1743696644667,40.79233686,114.36,114.33,8.7466]
[1743696644973,0.14216157,114.33,114.29,21.874]
[1743696645171,0.14216157,114.33,114.3,21.71620329]
[1743696645371,0.28432314,114.33,114.3,21.71620329]
[1743696646091,22.00052643,114.33,114.29,21.874]
[1743696646573,22.00052643,114.33,114.29,30.6236]
[1743696646771,0.28432314,114.31,114.29,30.6236]
[1743696647180,0.28432314,114.31,114.29,52.33980329]
[1743696647380,0.28432314,114.31,114.29,30.6236]
[1743696649193,18.79181043,114.3,114.29,8.7496]
[1743696649379,40.50801372,114.3,114.29,8.7496]
[1743696650898,40.50801372,114.3,114.27,65.6338]
[1743696650899,40.79233686,114.3,114.27,74.385]
[1743696651294,26.0,114.26,114.23,1.5807]
[1743696651512,26.0,114.26,114.21,6.3232]
[1743696651513,0.42648471,114.26,114.24,8.7535]
[1743696651689,18.79181043,114.25,114.24,8.7535]
[1743696652010,40.50801372,114.25,114.24,8.7535]
[1743696652206,0.14216157,114.24,114.22,8.755]
[1743696652377,0.28432314,114.23,114.22,8.755]
[1743696653081,0.28432314,114.23,114.21,21.71620329]
[1743696654092,154.64964886,114.25,114.22,21.71620329]
[1743696654284,0.28432314,114.24,114.22,21.71620329]
[1743696654591,27.49181043,114.28,114.23,21.71620329]
[1743696654800,0.28432314,114.27,114.25,21.71620329]
[1743696655174,26.0,114.27,114.26,8.7519]
[1743696655398,157.85836486,114.3,114.26,8.7519]
[1743696655399,19.07613357,114.29,114.26,8.7519]
[1743696656688,18.933972,114.29,114.26,21.71620329]
[1743696657073,0.14216157,114.28,114.24,74.4047]
[1743696657293,0.14216157,114.28,114.26,21.71620329]
[1743696657798,18.933972,114.29,114.26,21.71620329]
[1743696657799,136.0,114.3,114.26,21.71620329]
[1743696657998,40.36585215,114.3,114.26,21.71620329]
[1743696658201,0.14216157,114.29,114.26,21.71620329]
[1743696658398,0.14216157,114.29,114.25,21.71620329]
[1743696658399,22.142688,114.29,114.25,21.71620329]
[1743696658579,19.07613357,114.27,114.23,21.71620329]
[1743696658784,40.79233686,114.27,114.23,21.71620329]
[1743696659180,19.07613357,114.27,114.23,21.71620329]
[1743696659884,40.79233686,114.27,114.23,21.71620329]
[1743696660085,19.07613357,114.27,114.23,21.71620329]
[1743696660289,0.28432314,114.27,114.25,21.71620329]
[1743696660697,0.28432314,114.27,114.26,8.7519]
[1743696661005,26.28432314,114.27,114.26,8.7519]
[1743696662104,0.14216157,114.26,114.22,21.8869]
[1743696662399,136.0,114.29,114.25,21.71620329]
[1743696662577,327.68,114.3,114.27,21.71620329]
[1743696662780,327.68,114.3,114.28,8.7504]
[1743696663202,0.14216157,114.33,114.29,21.71620329]
[1743696663382,0.14216157,114.32,114.28,30.6264]
[1743696663582,18.79181043,114.32,114.28,52.34260329]
[1743696663778,40.50801372,114.32,114.28,52.34260329]
[1743696663985,0.28432314,114.31,114.28,30.46660329]
[1743696664488,22.00052643,114.31,114.28,8.7504]
[1743696664701,22.00052643,114.31,114.26,43.59550329]
[1743696664702,22.00052643,114.31,114.27,8.7512]
[1743696664887,22.00052643,114.31,114.27,52.34540329]
[1743696665600,0.28432314,114.31,114.27,52.34540329]
[1743696665984,22.00052643,114.31,114.27,30.6292]
[1743696666508,22.00052643,114.29,114.27,8.7512]
[1743696666695,0.28432314,114.29,114.26,8.7519]
[1743696667403,0.28432314,114.29,114.26,52.34800329]
[1743696667604,0.28432314,114.29,114.26,30.6318]
[1743696667786,144.7,114.3,114.27,21.71620329]
[1743696667983,143.9562,114.36,114.29,21.71620329]
[1743696668214,0.14216157,114.35,114.32,21.71620329]
[1743696668383,19.07613357,114.35,114.31,21.71620329]
[1743696668701,0.14216157,114.33,114.29,21.71620329]
[1743696668886,136.0,114.34,114.3,21.71620329]
[1743696669098,29.81456486,114.36,114.31,21.71620329]
[1743696669303,18.79181043,114.35,114.31,21.71620329]
[1743696669611,0.28432314,114.34,114.31,21.71620329]
[1743696669784,31.96560329,114.36,114.32,21.71620329]
[1743696669985,30.41620329,114.36,114.32,21.71620329]
[1743696670216,0.28432314,114.35,114.33,21.71620329]
[1743696670415,8.7,114.36,114.33,21.71620329]
[1743696670719,327.7,114.38,114.36,8.7443]
[1743696671306,8.7,114.41,114.37,21.71620329]
[1743696671690,0.28432314,114.4,114.37,21.71620329]
[1743696672401,18.79181043,114.41,114.37,21.71620329]
[1743696672594,0.28432314,114.4,114.37,21.71620329]
[1743696672797,18.79181043,114.41,114.38,8.7427]
[1743696673000,0.28432314,114.4,114.38,8.7427]
[1743696674309,22.00052643,114.4,114.38,8.7427]
[1743696674491,0.28432314,114.38,114.35,8.745]
[1743696674807,22.00052643,114.38,114.35,8.745]
[1743696675503,0.28432314,114.38,114.35,8.745]
[1743696675901,0.28432314,114.38,114.35,52.32390329]
[1743696676105,136.0,114.39,114.37,21.71620329]
[1743696676338,136.0,114.39,114.36,21.71620329]
[1743696676495,136.0,114.39,114.35,36.8794]
[1743696676700,136.0,114.39,114.35,58.59560329]
[1743696676916,0.14216157,114.38,114.35,30.6077]
[1743696677117,0.28432314,114.38,114.35,30.6077]
[1743696677428,40.79233686,114.38,114.35,8.745]
[1743696677587,19.07613357,114.38,114.35,8.745]
[1743696677791,0.28432314,114.38,114.35,30.46120329]
[1743696678331,136.0,114.39,114.35,52.32390329]
[1743696678631,136.0,114.39,114.36,21.71620329]
[1743696679052,136.0,114.39,114.37,8.7435]
[1743696679827,0.28432314,114.39,114.37,8.7435]
[1743696680030,157.71620329,114.41,114.37,30.6023]
[1743696680232,18.79181043,114.41,114.37,52.31850329]
[1743696680431,0.28432314,114.4,114.37,52.31850329]
[1743696680744,0.14216157,114.4,114.37,52.31850329]
[1743696680919,0.28432314,114.4,114.37,30.6023]
[1743696681242,0.28432314,114.4,114.37,52.31850329]
[1743696681825,0.28432314,114.4,114.37,30.6023]
[1743696682323,0.28432314,114.4,114.37,52.31850329]
[1743696682521,0.28432314,114.4,114.37,30.6023]
[1743696683142,0.28432314,114.4,114.37,21.71620329]
[1743696684323,0.28432314,114.4,114.36,21.71620329]
[1743696685238,22.00052643,114.4,114.37,8.7435]
[1743696687345,22.00052643,114.4,114.36,30.604]
[1743696687943,0.28432314,114.38,114.36,8.7443]
[1743696688125,22.00052643,114.38,114.36,8.7443]
[1743696688821,0.28432314,114.38,114.36,8.7443]
[1743696689217,136.0,114.39,114.36,52.32120329]
[1743696691140,136.0,114.39,114.36,30.605]
[1743696691347,0.28432314,114.38,114.36,30.605]
[1743696693128,22.00052643,114.37,114.36,8.7443]
[1743696693642,0.28432314,114.37,114.34,21.8636]
[1743696694325,0.28432314,114.36,114.34,21.8636]
[1743696694850,0.28432314,114.36,114.33,8.7466]
[1743696694851,22.00052643,114.36,114.33,8.7466]
[1743696695723,22.00052643,114.36,114.32,30.6152]
[1743696695951,0.28432314,114.34,114.32,30.6152]
[1743696696162,21.71620329,114.36,114.32,52.33140329]
[1743696696450,0.28432314,114.35,114.32,52.33140329]
[1743696700051,157.71620329,114.37,114.32,96.06820329]
[1743696700248,8.7,114.38,114.34,21.71620329]
[1743696700426,21.71620329,114.38,114.32,74.352]
[1743696700630,0.28432314,114.37,114.33,21.71620329]
[1743696700855,21.71620329,114.35,114.32,30.6152]
[1743696702954,0.28432314,114.34,114.32,30.6152]
[1743696704143,0.28432314,114.34,114.32,21.8679]
[1743696704851,21.71620329,114.33,114.31,8.7481]
[1743696705735,21.71620329,114.33,114.3,30.6201]
[1743696706141,0.28432314,114.32,114.3,8.7489]
[1743696709061,22.00052643,114.32,114.3,8.7489]
[1743696710260,22.00052643,114.32,114.29,8.7496]
[1743696710836,22.00052643,114.32,114.27,21.877]
[1743696710837,19.07613357,114.29,114.27,8.7512]
[1743696711042,22.00052643,114.28,114.27,8.7512]
[1743696713062,22.00052643,114.28,114.25,30.6336]
[1743696714369,21.71620329,114.32,114.27,21.71620329]
[1743696714563,40.50801372,114.33,114.29,21.71620329]
[1743696714871,40.50801372,114.33,114.28,21.71620329]
[1743696715260,0.28432314,114.32,114.28,21.71620329]
[1743696715446,144.7,114.34,114.29,21.71620329]
[1743696715648,166.41620329,114.34,114.29,21.71620329]
[1743696715851,0.28432314,114.33,114.3,30.6211]
[1743696716448,40.50801372,114.35,114.3,52.33730329]
[1743696716648,40.50801372,114.35,114.31,21.71620329]
[1743696716881,485.21620329,114.36,114.31,21.71620329]
[1743696717177,0.28432314,114.35,114.31,21.71620329]
[1743696717358,22.00052643,114.35,114.31,21.71620329]
[1743696717870,21.71620329,114.34,114.3,21.8722]
[1743696718052,21.71620329,114.33,114.3,21.8722]
[1743696718770,40.79233686,114.34,114.3,21.8722]
[1743696719266,0.28432314,114.34,114.3,43.58840329]
[1743696719571,136.0,114.35,114.31,21.71620329]
[1743696719771,327.5,114.36,114.33,21.71620329]
[1743696719966,327.5,114.36,114.34,30.46200329]
[1743696720469,327.5,114.36,114.35,21.71620329]
[1743696721050,327.5,114.36,114.34,30.46200329]
[1743696721955,327.5,114.36,114.35,21.71620329]
[1743696722152,157.71620329,114.4,114.35,21.71620329]
[1743696722460,136.0,114.42,114.37,21.71620329]
[1743696722648,157.71620329,114.42,114.37,21.71620329]
[1743696722851,356.61981043,114.43,114.39,21.71620329]
[1743696722852,327.56,114.43,114.39,21.71620329]
[1743696723073,327.56,114.43,114.4,21.71620329]
[1743696723372,21.71620329,114.46,114.41,21.71620329]
[1743696724074,22.00052643,114.46,114.41,21.71620329]
[1743696724265,21.71620329,114.46,114.41,21.71620329]
[1743696724780,21.71620329,114.44,114.38,74.3135]
[1743696724999,21.71620329,114.44,114.39,21.71620329]
[1743696725482,18.933972,114.44,114.39,21.71620329]
[1743696725690,21.71620329,114.43,114.39,21.71620329]
[1743696725980,40.65017529,114.44,114.39,21.71620329]
[1743696726186,40.65017529,114.44,114.4,8.7412]
[1743696726657,18.933972,114.44,114.4,8.7412]
[1743696726854,157.71620329,114.45,114.41,21.71620329]
[1743696727074,136.0,114.45,114.42,21.71620329]
[1743696727870,21.71620329,114.48,114.43,21.71620329]
[1743696728065,21.71620329,114.49,114.46,8.7366]
[1743696728474,40.50801372,114.49,114.46,8.7366]
[1743696728674,0.28432314,114.48,114.46,8.7366]
[1743696728866,40.50801372,114.49,114.46,8.7366]
[1743696729269,349.27620329,114.5,114.46,30.5782]
[1743696729475,349.27620329,114.5,114.46,52.29440329]
[1743696729791,327.56,114.5,114.46,65.20805539]
[1743696730395,327.56,114.5,114.47,34.62985539]
[1743696730597,327.56,114.5,114.48,34.62985539]
[1743696730796,170.62985539,114.52,114.48,34.62985539]
[1743696731096,34.62985539,114.52,114.46,30.5782]
[1743696731287,0.28432314,114.5,114.46,65.20805539]
[1743696731456,0.28432314,114.5,114.46,30.5782]
[1743696731770,0.28432314,114.5,114.46,65.20805539]
[1743696731974,34.91417853,114.5,114.46,65.20805539]
[1743696732673,34.62985539,114.48,114.45,8.7371]
[1743696732991,34.62985539,114.46,114.45,8.7371]
[1743696733164,34.91417853,114.47,114.45,8.7371]
[1743696733564,34.91417853,114.47,114.43,8.7389]
[1743696733965,34.62985539,114.45,114.43,8.7389]
[1743696734484,34.62985539,114.45,114.41,8.7404]
[1743696734797,34.62985539,114.45,114.41,65.22145539]
[1743696734984,0.28432314,114.45,114.41,65.22145539]
[1743696736181,0.28432314,114.46,114.42,34.62985539]
[1743696736873,0.28432314,114.46,114.43,8.7389]
[1743696737074,34.62985539,114.45,114.43,8.7389]
[1743696737460,0.28432314,114.47,114.43,43.36875539]
[1743696737692,34.77201696,114.47,114.43,43.36875539]
[1743696737981,0.28432314,114.47,114.44,34.62985539]
[1743696738369,136.0,114.48,114.44,34.62985539]
[1743696738565,43.30985539,114.49,114.44,34.62985539]
[1743696738765,43.30985539,114.49,114.45,8.7374]
[1743696738986,34.62985539,114.48,114.45,8.7374]
[1743696739686,43.30985539,114.49,114.45,8.7374]
[1743696740787,34.62985539,114.47,114.44,8.7382]
[1743696741286,34.91417853,114.48,114.44,8.7382]
[1743696741467,34.91417853,114.45,114.44,8.7382]
[1743696741793,34.91417853,114.45,114.36,6.2825]
[1743696741794,0.28432314,114.43,114.36,6.2825]
[1743696741962,34.62985539,114.4,114.35,65.23755539]
[1743696742471,34.62985539,114.4,114.36,34.62985539]
[1743696742668,34.91417853,114.41,114.36,34.62985539]
[1743696742870,34.91417853,114.41,114.35,30.6077]
[1743696742871,34.62985539,114.39,114.37,8.7435]
[1743696743386,34.62985539,114.4,114.37,8.7435]
[1743696744087,8.96432314,114.41,114.37,65.23215539]
[1743696744867,8.68,114.41,114.37,65.23215539]
[1743696745066,8.68,114.41,114.38,34.62985539]
[1743696745269,34.62985539,114.42,114.37,65.23215539]
[1743696746191,34.91417853,114.41,114.37,30.6023]
[1743696746990,34.62985539,114.4,114.37,30.6023]
[1743696747191,0.28432314,114.41,114.37,30.6023]
[1743696747192,34.91417853,114.41,114.37,65.23215539]
[1743696747379,0.28432314,114.41,114.37,65.23215539]
[1743696747591,34.91417853,114.41,114.37,65.23215539]
[1743696748793,34.62985539,114.41,114.37,65.23215539]
[1743696749386,34.62985539,114.41,114.37,30.6023]
[1743696749991,34.62985539,114.4,114.37,30.6023]
[1743696750188,0.42648471,114.42,114.37,65.23215539]
[1743696750395,34.62985539,114.41,114.37,65.23215539]
[1743696750973,0.42648471,114.42,114.37,65.23215539]
[1743696751183,34.62985539,114.41,114.37,65.23215539]
[1743696752283,34.62985539,114.41,114.37,30.6023]
[1743696753082,34.62985539,114.41,114.37,65.23215539]
[1743696753282,34.91417853,114.42,114.37,65.23215539]
[1743696753885,0.28432314,114.42,114.38,34.62985539]
[1743696754087,136.0,114.43,114.39,34.62985539]
[1743696755079,170.62985539,114.43,114.39,34.62985539]
[1743696755600,170.62985539,114.43,114.4,30.5943]
[1743696755804,157.67250616,114.43,114.4,30.5943]
[1743696756595,21.67250616,114.42,114.4,8.7412]
[1743696756800,0.28432314,114.42,114.4,8.7412]
[1743696757180,21.67250616,114.41,114.4,8.7412]
[1743696757696,21.67250616,114.41,114.38,30.5987]
[1743696759899,0.28432314,114.42,114.38,30.5987]
[1743696760077,21.9568293,114.42,114.38,30.5987]
[1743696760500,21.9568293,114.42,114.38,52.27120616]
[1743696760692,21.67250616,114.5,114.41,43.34501232]
[1743696760883,21.67250616,114.49,114.44,21.67250616]
[1743696761079,136.0,114.5,114.44,21.67250616]
[1743696761404,21.9568293,114.49,114.44,21.67250616]
[1743696761796,157.67250616,114.5,114.45,21.67250616]
[1743696762185,21.67250616,114.49,114.46,8.7366]
[1743696763287,0.28432314,114.49,114.46,30.5782]
[1743696763596,136.0,114.5,114.46,52.25070616]
[1743696763800,30.35250616,114.51,114.47,34.62437345]
[1743696763801,8.68,114.51,114.47,34.62437345]
[1743696764002,36.22397345,114.52,114.48,34.62437345]
[1743696764198,34.62437345,114.52,114.49,8.7343]
[1743696764404,34.62437345,114.52,114.49,30.5702]
[1743696764800,34.62437345,114.53,114.49,30.5702]
[1743696765303,329.07796157,114.55,114.5,34.62437345]
[1743696765494,361.90437345,114.55,114.51,34.62437345]
[1743696766200,361.90437345,114.55,114.52,30.5622]
[1743696766609,34.62437345,114.53,114.52,8.732]
[1743696768415,0.28432314,114.54,114.5,30.567]
[1743696768716,34.62437345,114.53,114.5,30.567]
[1743696769497,34.62437345,114.52,114.5,30.567]
[1743696770202,43.28437345,114.53,114.5,30.567]
[1743696770406,43.28437345,114.53,114.5,21.8334]
[1743696770602,34.90869659,114.52,114.5,21.8334]
[1743696771298,43.28437345,114.53,114.5,21.8334]
[1743696772416,34.62437345,114.53,114.5,21.8334]
[1743696772717,34.62437345,114.53,114.5,30.567]
[1743696774222,34.90869659,114.54,114.5,30.567]
[1743696774396,34.90869659,114.54,114.5,108.85947345]
[1743696774597,34.90869659,114.54,114.49,43.6719]
[1743696774821,34.90869659,114.54,114.49,78.29627345]
[1743696775029,34.90869659,114.54,114.46,74.2615]
[1743696775206,34.62437345,114.53,114.49,34.62437345]
[1743696775721,53.70050702,114.54,114.49,34.62437345]
[1743696776609,34.62437345,114.53,114.49,30.5702]
[1743696776823,0.28432314,114.52,114.49,30.5702]
[1743696777125,0.28432314,114.52,114.49,65.19457345]
[1743696777329,0.28432314,114.53,114.49,108.86647345]
[1743696777620,34.90869659,114.53,114.49,108.86647345]
[1743696778311,34.90869659,114.53,114.49,30.5702]
[1743696778515,34.62437345,114.52,114.49,30.5702]
[1743696778898,60.62437345,114.51,114.49,8.7343]
[1743696780231,26.0,114.51,114.49,8.7343]
[1743696781418,0.28432314,114.5,114.49,8.7343]
[1743696782630,0.28432314,114.5,114.47,30.5756]
[1743696783196,19.07613357,114.5,114.47,30.5756]
[1743696783404,53.70050702,114.5,114.47,30.5756]
[1743696783918,40.72479604,114.5,114.47,30.5756]
[1743696784321,19.07613357,114.48,114.47,8.7359]
[1743696784633,40.72479604,114.48,114.43,52.23436247]
[1743696784830,21.64866247,114.47,114.43,52.23436247]
[1743696786020,40.72479604,114.48,114.43,52.23436247]
[1743696786226,19.07613357,114.48,114.44,21.64866247]
[1743696786632,40.72479604,114.48,114.44,21.64866247]
[1743696787746,52.1704,114.51,114.47,21.64866247]
[1743696787747,18.79181043,114.51,114.47,21.64866247]
[1743696788046,18.79181043,114.51,114.49,8.7343]
[1743696788417,0.28432314,114.5,114.49,8.7343]
[1743696788824,40.4404729,114.51,114.49,8.7343]
[1743696789107,0.28432314,114.5,114.49,8.7343]
[1743696789313,21.93298561,114.5,114.47,8.7359]
[1743696789520,21.93298561,114.5,114.47,30.5756]
[1743696790019,21.93298561,114.5,114.47,21.8397]
[1743696790211,21.64866247,114.49,114.47,21.8397]
[1743696790534,0.28432314,114.5,114.47,43.48836247]
[1743696790843,0.28432314,114.5,114.47,21.8397]
[1743696791344,21.93298561,114.5,114.47,21.8397]
[1743696791566,21.64866247,114.49,114.47,21.8397]
[1743696791777,21.93298561,114.5,114.47,21.8397]
[1743696793781,0.28432314,114.5,114.47,21.8397]
[1743696794072,0.28432314,114.5,114.47,43.48836247]
[1743696794640,0.28432314,114.5,114.47,52.22426247]
[1743696795584,1.5521,114.53,114.49,21.64866247]
[1743696795585,18.79181043,114.53,114.49,21.64866247]
[1743696795872,327.08,114.54,114.51,21.64866247]
[1743696796080,327.08,114.54,114.52,21.64866247]
[1743696796376,157.64866247,114.57,114.53,21.64866247]
[1743696796573,0.14216157,114.57,114.53,21.64866247]
[1743696796738,21.64866247,114.59,114.54,21.64866247]
[1743696797148,21.64866247,114.59,114.55,21.64866247]
[1743696797556,18.79181043,114.59,114.55,21.64866247]
[1743696797754,334.7496,114.61,114.51,82.465]
[1743696797755,334.7496,114.61,114.57,21.64866247]
[1743696797949,1.5722,114.61,114.57,21.64866247]
[1743696798248,162.5992,114.67,114.6,21.64866247]
[1743696798454,21.64866247,114.66,114.62,21.64866247]
[1743696798859,21.64866247,114.66,114.61,21.64866247]
[1743696799242,21.64866247,114.63,114.59,30.5436]
[1743696799459,21.64866247,114.62,114.59,30.5436]
[1743696799670,19.07613357,114.61,114.59,8.7267]
[1743696799854,40.72479604,114.61,114.59,8.7267]
[1743696800040,53.64563852,114.61,114.59,8.7267]
[1743696800844,19.07613357,114.61,114.58,8.7275]
[1743696801044,53.64563852,114.61,114.58,8.7275]
[1743696801646,34.56950495,114.6,114.58,8.7275]
[1743696802073,19.07613357,114.61,114.58,8.7275]
[1743696802363,53.64563852,114.61,114.58,8.7275]
[1743696802748,19.07613357,114.61,114.58,8.7275]
[1743696802949,34.56950495,114.62,114.58,30.5463]
[1743696803382,0.28432314,114.61,114.58,30.5463]
[1743696803665,0.28432314,114.61,114.58,65.11580495]
[1743696803864,43.22950495,114.64,114.59,34.56950495]
[1743696804073,0.28432314,114.63,114.59,34.56950495]
[1743696804467,19.07613357,114.63,114.59,34.56950495]
[1743696804665,53.64563852,114.63,114.58,65.11580495]
[1743696805261,0.28432314,114.61,114.58,65.11580495]
[1743696805765,0.28432314,114.61,114.58,30.5463]
[1743696805961,0.28432314,114.61,114.58,65.11580495]
[1743696807082,154.79181043,114.63,114.59,34.56950495]
[1743696807083,136.0,114.63,114.59,34.56950495]
[1743696807259,136.0,114.63,114.61,34.56950495]
[1743696807453,53.36131538,114.65,114.61,34.56950495]
[1743696807971,0.28432314,114.64,114.61,34.56950495]
[1743696808165,18.79181043,114.65,114.61,34.56950495]
[1743696808560,0.14216157,114.64,114.61,34.56950495]
[1743696808758,8.66,114.66,114.61,34.56950495]
[1743696808962,195.96051538,114.67,114.63,30.5329]
[1743696809158,18.79181043,114.66,114.63,30.5329]
[1743696809366,0.28432314,114.65,114.63,30.5329]
[1743696813477,0.28432314,114.65,114.63,8.7237]
[1743696817703,34.85382809,114.65,114.63,8.7237]
[1743696817863,34.85382809,114.64,114.63,8.7237]
[1743696818183,19.07613357,114.63,114.58,21.8181]
[1743696818375,34.85382809,114.61,114.58,21.8181]
[1743696818683,34.56950495,114.6,114.56,43.6415]
[1743696818899,34.56950495,114.6,114.56,78.21100495]
[1743696819189,0.28432314,114.59,114.56,43.6415]
[1743696819576,0.28432314,114.59,114.56,78.21100495]
[1743696820189,0.28432314,114.59,114.56,65.25180589]
[1743696820788,0.28432314,114.59,114.56,95.80340589]
[1743696822591,0.28432314,114.59,114.56,74.1931]
[1743696822886,0.28432314,114.59,114.56,87.07440589]
[1743696824601,136.0,114.61,114.58,21.61030589]
[1743696824774,326.72,114.64,114.6,30.541]
[1743696824976,356.97030589,114.64,114.6,52.15130589]
[1743696825213,356.97030589,114.64,114.6,30.541]
[1743696825384,348.33030589,114.64,114.6,30.541]
[1743696825585,0.28432314,114.63,114.6,30.541]
[1743696825976,0.14216157,114.63,114.6,52.15130589]
[1743696826473,0.28432314,114.63,114.6,52.15130589]
[1743696827174,40.68643946,114.63,114.6,30.541]
[1743696827875,43.37369947,114.63,114.6,30.541]
[1743696828686,0.28432314,114.61,114.6,30.541]
[1743696829292,0.28432314,114.61,114.6,21.815]
[1743696830489,0.14216157,114.63,114.6,21.815]
[1743696830680,19.07613357,114.63,114.6,21.815]
[1743696830992,24.2975659,114.62,114.6,21.815]
[1743696831198,0.28432314,114.61,114.59,8.7267]
[1743696831384,24.58188904,114.61,114.59,8.7267]
[1743696831584,24.58188904,114.61,114.58,21.8185]
[1743696832400,0.28432314,114.59,114.58,21.8185]
[1743696832790,0.28432314,114.59,114.57,8.7282]
[1743696834786,0.28432314,114.6,114.57,30.5489]
[1743696834985,0.28432314,114.6,114.57,54.8464659]
[1743696835397,0.28432314,114.6,114.57,30.5489]
[1743696837496,43.37369947,114.6,114.57,30.5489]
[1743696838401,43.37369947,114.6,114.57,21.8207]
[1743696838699,19.07613357,114.6,114.57,21.8207]
[1743696838903,43.37369947,114.6,114.57,21.8207]
[1743696840399,43.37369947,114.6,114.57,30.5489]
[1743696841002,19.07613357,114.6,114.57,30.5489]
[1743696841677,136.0,114.61,114.57,98.4878659]
[1743696841884,136.0,114.61,114.59,24.2975659]
[1743696842299,136.0,114.61,114.57,43.6414]
[1743696842499,136.0,114.61,114.57,67.9389659]
[1743696842797,136.0,114.61,114.58,24.2975659]
[1743696843690,51.72937633,114.63,114.58,24.2975659]
[1743696844003,0.14216157,114.62,114.58,24.2975659]
[1743696844205,0.28432314,114.62,114.58,24.2975659]
[1743696844406,24.58188904,114.62,114.59,30.5436]
[1743696844905,0.28432314,114.62,114.59,30.5436]
[1743696845602,0.14216157,114.61,114.59,30.5436]
[1743696846408,0.14216157,114.61,114.59,21.8169]
[1743696848282,187.58721476,114.63,114.6,24.2975659]
[1743696848283,26.0,114.63,114.6,24.2975659]
[1743696848505,18.79181043,114.65,114.61,33.0227659]
[1743696848802,0.28432314,114.64,114.61,33.0227659]
[1743696849396,18.79181043,114.65,114.61,8.7252]
[1743696849600,0.28432314,114.64,114.61,24.2975659]
[1743696849793,18.79181043,114.65,114.61,24.2975659]
[1743696849794,0.14216157,114.65,114.61,24.2975659]
[1743696850210,43.2315379,114.65,114.6,24.2975659]
[1743696850387,24.2975659,114.64,114.6,24.2975659]
[1743696850711,24.2975659,114.64,114.59,32.0549659]
[1743696851005,0.42648471,114.63,114.59,32.0549659]
[1743696851482,0.42648471,114.63,114.6,30.541]
[1743696852698,0.42648471,114.61,114.6,8.726]
[1743696853609,0.42648471,114.61,114.58,30.5457]
[1743696853810,26.0,114.62,114.59,24.2975659]
[1743696854103,0.42648471,114.59,114.58,30.5457]
[1743696854998,0.42648471,114.59,114.58,8.7275]
[1743696855223,24.72405061,114.59,114.58,8.7275]
[1743696855499,0.42648471,114.59,114.58,8.7275]
[1743696855703,0.42648471,114.57,114.52,8.732]
[1743696855923,24.2975659,114.56,114.52,30.5622]
[1743696856798,0.42648471,114.55,114.52,30.5622]
[1743696857411,24.2975659,114.56,114.52,30.5622]
[1743696857588,24.2975659,114.56,114.52,54.8597659]
[1743696857792,24.2975659,114.56,114.52,30.5622]
[1743696857993,24.72405061,114.55,114.52,30.5622]
[1743696858311,0.42648471,114.55,114.52,30.5622]
[1743696859000,24.72405061,114.55,114.52,30.5622]
[1743696859204,0.42648471,114.55,114.52,30.5622]
[1743696859924,24.2975659,114.54,114.52,30.5622]
[1743696860424,43.37369947,114.55,114.52,30.5622]
[1743696861321,43.37369947,114.55,114.52,8.732]
[1743696861322,0.42648471,114.53,114.52,8.732]
[1743696861620,33.36405061,114.53,114.51,8.7325]
[1743696861813,24.2975659,114.52,114.48,30.5729]
[1743696862123,24.72405061,114.51,114.48,30.5729]
[1743696862423,24.2975659,114.5,114.48,8.7351]
[1743696863618,0.42648471,114.49,114.48,8.7351]
[1743696863839,0.42648471,114.49,114.46,30.5776]
[1743696864139,43.37369947,114.49,114.46,30.5776]
[1743696864298,0.42648471,114.47,114.46,8.7366]
[1743696864821,24.72405061,114.47,114.46,8.7366]
[1743696865114,19.07613357,114.47,114.46,8.7366]
[1743696865326,43.37369947,114.47,114.46,8.7366]
[1743696865623,0.42648471,114.45,114.43,8.7389]
[1743696865812,0.42648471,114.45,114.42,21.8488]
[1743696865813,24.72405061,114.45,114.42,21.8488]
[1743696866121,24.72405061,114.43,114.41,8.7404]
[1743696866835,24.2975659,114.43,114.41,8.7404]
[1743696867039,136.0,114.44,114.41,30.5916]
[1743696868732,136.0,114.44,114.41,54.8891659]
[1743696869305,8.64,114.46,114.42,24.2975659]